Cogmind - Beta 10.2 @@@ ROGUE MODE // 2021.10.30 @ 17:34:40 Player: tionichm Result: Destroyed by S-10 Pest with Light Assault Rifle Performance ------------- Evolutions (0) 0 Regions Visited (1) 200 Robots Destroyed (17) 85 Value Destroyed (422) 422 Prototype IDs (3) 60 Alien Tech Used (0) 0 Bonus (0) 0 TOTAL SCORE: 767 Bonus ------- None Cogmind --------- Core Integrity 0/250 Matter 406/450 Energy 146/160 System Corruption 2% Temperature Cool (21) Movement Walking (180) Ox2 Location -10/Materials Parts ------- > --- POWER (1) -------- Light Nuclear Core > --- PROPULSION (2) --- Aluminum Leg > --- UTILITY (2) ------ Large Storage Unit Large Matter Pod > --- WEAPON (2) ------- Light Assault Rifle Mining Laser > --- INVENTORY (10) --- Ion Engine Aluminum Leg Heat Sink Large Storage Unit High-capacity Battery (400) Signal Interpreter ECM Suite Tractor Beam Assault Rifle Peak State ------------ > --- POWER ------------ Light Nuclear Core > --- PROPULSION ------- Aluminum Leg Aluminum Leg > --- UTILITY ---------- Large Storage Unit Large Matter Pod > --- WEAPON ----------- Small Laser Light Assault Rifle > --- INVENTORY -------- Light Ion Engine Wheel Compact Wheel Heat Sink Large Storage Unit Signal Interpreter ECM Suite Tractor Beam Assault Rifle Mining Laser [Rating: 10] Favorites ----------- Power Ion Engine Engine Ion Engine Power Core Light Nuclear Core Propulsion Aluminum Leg Leg Aluminum Leg Utility Large Matter Pod Storage Large Matter Pod Weapon Small Laser Energy Gun Small Laser Ballistic Gun Light Assault Rifle Special Weapon Mining Laser Special Melee Weapon Datajack Build | -11 -10 ------- Run | Scr Mat Slots Evolved . | . . Power . | . . Propulsion . | . . Utility . | . . Weapon . | . . Parts Attached 22 | 6 16 Power 4 | 1 3 Engine 3 | 1 2 Core 1 | . 1 Reactor . | . . Propulsion 4 | 2 2 Treads . | . . Leg 4 | 2 2 Wheel . | . . Hover . | . . Flight . | . . Utility 3 | 1 2 Device . | . . Storage 3 | 1 2 Processor . | . . Hackware . | . . Protection . | . . Artifact . | . . Weapon 11 | 2 9 Energy Gun 4 | . 4 Energy Cannon . | . . Ballistic Gun 5 | 2 3 Ballistic Cannon . | . . Launcher . | . . Special Weapon 1 | . 1 Impact Weapon . | . . Slashing Weapon . | . . Piercing Weapon . | . . Special Melee Weapon 1 | . 1 Unidentified Prototypes . | . . Parts Lost 5 | . 5 Power . | . . Propulsion 1 | . 1 Utility . | . . Weapon 4 | . 4 Highest Loss Streak 2 | . 2 Average Slot Usage (%) 97 | . 97 Engine 9 | . 9 Core 4 | . 4 Leg 27 | . 27 Storage 26 | . 26 Energy Gun 13 | . 13 Ballistic Gun 13 | . 13 Naked Turns . | . . Heaviest Build 27 | 10 27 Greatest Support 20 | 20 20 Greatest Overweight (x) 2 | . 2 Average Overweight (x) . | . . Largest Inventory Capacity 10 | 6 10 Average Capacity 8 | 5 8 Most Carried 10 | 4 10 Average Carried 7 | 3 7 Final Capacity 10 | 6 10 Final Carried 9 | 4 9 Class Distribution -------------------- 80% | Mutant 19% | Scavenger-Mutant Dominant Class ---------------- Mutant | -10/Materials Resources | -11 -10 ----------- Run | Scr Mat Matter Collected 652 | 198 454 Remotely . | . . Salvage Created 590 | . 590 Parts 37 | . 37 Haulers Intercepted . | . . Recyclers Shooed . | . . Parts Field Recycled . | . . Retrieved Matter . | . . Parts Self-Destructed . | . . Prevented . | . . Kills | -11 -10 ------- Run | Scr Mat Combat Hostiles Destroyed 13 | . 13 Guns 13 | . 13 Classes Destroyed 6 | . 6 Worker 1 | . 1 Recycler 1 | . 1 Operator 1 | . 1 Watcher 1 | . 1 Swarmer 3 | . 3 Grunt 10 | . 10 Best Kill Streak 6 | . 6 Combat Bots Only 5 | . 5 Max Kills in Single Turn 1 | . 1 Gunslinging . | . . Exploded . | . . Melee . | . . Uniques/NPCs Destroyed . | . . Combat | -11 -10 -------- Run | Scr Mat Damage Taken 996 | . 996 Core 252 | . 252 Absorbed by Shields . | . . Core Remaining (%) 100 | 100 . Volleys Fired 85 | . 85 Largest 2 | . 2 Hottest 100 | . 100 Shots Fired 163 | . 163 Gun 162 | . 162 Cannon . | . . Launcher . | . . Special 1 | . 1 Kinetic 79 | . 79 Thermal 84 | . 84 Explosive . | . . Electromagnetic . | . . Robot Hit Streak 13 | . 13 Robot Miss Streak 6 | . 6 Penetration Max . | . . Secondary Targets 2 | . 2 Max Gunslinging Chain 1 | . 1 Shots Hit Robots 88 | . 88 Core Hits 34 | . 34 Critical Hits . | . . Critical Kills . | . . Critical Parts Destroyed . | . . Melee Attacks 1 | . 1 Impact . | . . Slashing . | . . Piercing . | . . Sneak Attacks . | . . Combat Hostiles . | . . Follow-up Attacks . | . . Damage Inflicted 922 | . 922 Guns 922 | . 922 Cannons . | . . Explosions . | . . Melee . | . . Ramming . | . . Kinetic 478 | . 478 Thermal 444 | . 444 Explosive . | . . Electromagnetic . | . . Impact . | . . Slashing . | . . Piercing . | . . Highest Corruption 2 | . 2 Average Corruption 1 | . 1 Corruption Purged . | . . Effects 2 | . 2 Energy Discharges 1 | . 1 Data Loss (minor) 1 | . 1 Overload Shots . | . . Overflow Damage . | . . Projectiles . | . . Explosions . | . . Melee . | . . Knockbacks . | . . Impact . | . . Kinetic . | . . Secondary . | . . Self-Inflicted Damage . | . . Shots . | . . Rammed . | . . Targets Rammed . | . . Kicked . | . . Crushed . | . . Highest Temperature 196 | . 196 Average Temperature 66 | . 66 Received Heat Transfer 411 | . 411 Siege Activations . | . . Robots Corrupted . | . . Combat Hostiles . | . . Parts Fried . | . . Impact Corruptions . | . . Robots Melted . | . . Combat Hostiles . | . . Parts Melted . | . . Heat Transferred 1084 | . 1084 Parts Sabotaged . | . . Parts Stolen . | . . Parts Stripped . | . . Power Chain Reactions . | . . Missiles Intercepted . | . . Alert | -11 -10 ------- Run | Scr Mat Peak Influence 160 | . 160 Initial . | . . Average 56 | . 61 Maximum Alert Level . | . . Low Security (%) 100 | 100 100 Level 1 . | . . Level 2 . | . . Level 3 . | . . Level 4 . | . . Level 5 . | . . High Security . | . . Max Security . | . . Squads Dispatched 4 | . 4 Investigation 3 | . 3 Extermination . | . . Reinforcement 1 | . 1 Assault . | . . Garrison . | . . Intercept . | . . Construction Impeded . | . . Haulers Reinforced . | . . Stealth | -11 -10 --------- Run | Scr Mat Distress Signals 1 | . 1 Communications Jammed . | . . Distress Signals . | . . Times Spotted 26 | . 26 Peak Tracking Total 5 | . 5 Tactical Retreats . | . . Traps | -11 -10 ------- Run | Scr Mat Traps Triggered 3 | . 3 Indirectly . | . . Trap Hack Attempts . | . . Triggered . | . . Disarmed . | . . Reprogrammed . | . . Reused . | . . Traps Extracted . | . . Installed . | . . Triggered . | . . Machines | -11 -10 ---------- Run | Scr Mat Machines Disabled . | . . Max in Single Turn . | . . Machines Sabotaged . | . . Garrisons Compromised . | . . Overloaded Fab Kills . | . . Fab Network Shutdowns . | . . Hacking | -11 -10 --------- Run | Scr Mat Machines Accessed 6 | . 6 Terminals 5 | . 5 Fabricators . | . . Repair Stations . | . . Recycling Units 1 | . 1 Scanalyzers . | . . Garrison Access . | . . Total Hacks 17 | . 17 Successful 7 | . 7 Failed 10 | . 10 Catastrophic 3 | . 3 Database Lockouts . | . . Manual . | . . Terminals 16 | . 16 Fabricators . | . . Repair Stations . | . . Recycling Units 1 | . 1 Scanalyzers . | . . Garrison Access . | . . Terminal Hacks 6 | . 6 Prototype ID Bank 2 | . 2 Dispatch Records 2 | . 2 Recall Reinforcements 1 | . 1 Zone Layout 1 | . 1 Fabricator Hacks . | . . Repair Station Hacks . | . . Recycling Unit Hacks 1 | . 1 Report Inventory 1 | . 1 Scanalyzer . | . . Garrison Access Hacks . | . . Unauthorized Hacks . | . . Terminals . | . . Fabricators . | . . Repair Stations . | . . Recycling Units . | . . Scanalyzers . | . . Garrison Access . | . . Data Cores Recovered . | . . Used . | . . Hacking Detections 5 | . 5 Full Trace Events 3 | . 3 Feedback Events 1 | . 1 Corruption 1 | . 1 Feedback Blocked . | . . Robot Schematics Acquired . | . . Robots Built . | . . Matter . | . . Time . | . . Total Robot Build Rating . | . . Part Schematics Acquired . | . . Parts Built . | . . Matter . | . . Time . | . . Total Part Build Rating . | . . Parts Repaired . | . . Time . | . . Parts Recycled . | . . Recycled Matter . | . . Retrieved Matter . | . . Retrieved Components . | . . Parts Scanalyzed . | . . Part Schematics Acquired . | . . Parts Damaged . | . . Bothacking | -11 -10 ------------ Run | Scr Mat Used RIF Installer . | . . Robots Hacked 1 | . 1 Non-combat . | . . Combat 1 | . 1 Robot Hacks Applied 1 | . 1 parse_system 1 | . 1 Relay Couplers Released . | . . Robots Rewired . | . . Allies Hacked . | . . Hacks Repelled . | . . Allies | -11 -10 -------- Run | Scr Mat Total Allies . | . . Largest Group . | . . Highest-Rated Group . | . . Highest-Rated Ally . | . . Total Orders . | . . Ally Attacks . | . . Total Damage . | . . Kills . | . . Allies Corrupted . | . . Allies Melted . | . . Intel | -11 -10 ------- Run | Scr Mat Robot Analysis Total . | . . Derelict Logs Recovered . | . . Drone Launches . | . . Drone Recoveries . | . . Exploration | -11 -10 ------------- Run | Scr Mat Turns Passed 1123 | 77 1046 Spaces Moved 581 | 57 524 Core 9 | 9 . Treads . | . . Legs 572 | 48 524 Wheels . | . . Hover . | . . Flight . | . . Fastest Speed 50 | 50 120 Average Speed 136 | 108 139 Slowest Speed 180 | 120 180 Overloaded Moves . | . . Propulsion Burnouts . | . . Robots Hopped . | . . Cave-ins Triggered . | . . Exploration Rate (%) 37 | 4 71 Regions Visited 1 Branch Regions . Pre-discovered Areas . | . . Known Exits Taken . | . . Unknown Exits Taken 1 | 1 . Scrap Searched . | . . Spaces Dug 1 | . 1 Terrain Destroyed 1 | . 1 Melee . | . . Projectile 1 | . 1 AOE . | . . Terrain Rammed . | . . Walls Destroyed . | . . Machines Disabled . | . . Actions | -11 -10 --------- Run | Scr Mat Total 760 | 72 688 Wait 18 | . 18 Move 580 | 56 524 Hop . | . . Pick Up 37 | 10 27 Fast Attach . | . . Attach 11 | 6 5 Detach . | . . Swap 11 | . 11 Drop 17 | . 17 Fire 85 | . 85 Melee 1 | . 1 Ram . | . . Kick . | . . Crush . | . . Escape Stasis . | . . Rewire . | . . Trap . | . . Miscellaneous . | . . Route ------- -11/Scrapyard -10/Materials (discovered 4 exits: [*Mat x2] / [*Min x2]) History --------- Turn | Location | Event 5 | -11/Scrapyard | Discovered new exit (range 16) 78 | -11/Scrapyard | Entered Materials 104 | -10/Materials | Discovered new exit (range 12) 301 | -10/Materials | Build established: Mutant 365 | -10/Materials | Discovered new exit (range 11) 455 | -10/Materials | Core integrity fell below 50% 619 | -10/Materials | Discovered new exit (range 12) 653 | -10/Materials | Discovered new exit (range 16) 1085 | -10/Materials | Core integrity fell below 20% 1124 | -10/Materials | Destroyed by S-10 Pest with Light Assault Rifle Last Messages --------------- Matter reserves: 23 Inventory: Ion Engine (45%) Ion Engine (96%) Tractor Beam (40%) Flight Unit (90%) Sml. Storage Unit (92%) Com. Wheel (100%) Wheel (100%) Heat Sink (83%) Sml. Laser (50%) Sml. Laser (70%) R-06 Scavenger inserts Wheel into recycling unit. Recycling unit begins recycling process. R-06 Scavenger inserts Aluminum Leg into recycling unit. Jacked G-34 Mercenary... >>parse_system Reading system data... Datajack destroyed. Aluminum Leg destroyed. Map ----- +----------------------------------------------------+ | """"""""" +????????????????????? | | """"" " #????????????????????? | | #????????????????????? | | #????????????????????? | | ######+####### #######????????????????????????? | | # T #??# #???# ????????????????????????? | | "" # #??# #???# ????????????????????????? | | "" # ! #??# #???# ????????????????????????? | | "" #! ! #??# #???# ????????????????????????? | | #[!! #??# #???# ????????????????????????? | | #[!! !#??# #???# ????????????????????????? | | ###########??# #???# ???????###########??????? | | ?????????????# #???# ???????# """ """ #??????? | | ?????????????# ##########????# """ """ #??????? | | ?????????????# # #????# """ """ #??????? | | ?????????????# # """ #????# #??????? | | ??????######## # """ #????# #??????? | | ####### # """ #????# #??????? | | # + #????# #??????? | | # # ###### #??????? | | """" + ###+#### "T" # ######+######????? | | ??????# ??? ???# """ / % #????? | | ??????# ????""???# # T % #????? | | ??????#?????""???########## ##T## ##+#+#####? | | ????????????????????????#;##g####### # #? | | ????????????????????????#@ss #?# # #? | | ????????????????????????#""gs #?#### #? | | ????????????????????????#"Y #????# """ #? | | ????????????????????????#"" #????# """"" #? | | ????????????????????????# #????# """"" #? | | ????????????????????????# """#????# """"" #? | | ????????????????????????# """#????# """ #? | | ????????????????????????# """#????# #? | | ????????????????????????# / #????##########? | | ????????????????????????##########??????????????? | | | | | | | | | | | | | | | | | | | | | | | | | | | | | | | +----------------------------------------------------+ Best States ------------- Heat Dissipation 25 Energy Generation 14 Energy Capacity 250 Matter Stores 450 Matter Capacity 450 Sight Range 16 Terrain Scan Density 10 Evasion (%) 50 Item Schematics ----------------- None Robot Schematics ------------------ None Fabricated ------------ Nothing Alien Tech Used ----------------- None Achievements -------------- None Challenges ------------ None Game ------ Seed SurgeSingularityArray Manual? 0 Play Time 00:14:46 Cumulative 6.3 hours Start 2021.10.30 @ 17:17:51 End 2021.10.30 @ 17:34:40 Sessions 1 Manual Loads 0 Difficulty Rogue Special Mode None Game No. 18 Rogue 18 Adventurer 0 Explorer 0 Win Type - Total 0 Types 0/0/0/0/0/0/0/0/0 Lore% 7 Gallery% 12 Achievement% 9 Wizard Run 0 Options --------- ASCII 0 Keyboard 1 Movement Numpad Keybinds 0 Fullscreen 2 Font 16/SmallcapsGlow Map View 76x50 Tactical HUD 0 Map Filters NONE Filters NONE Steam 1 RUN: b7669e8e-471d-4716-87ac-fe9f186c1640